Workbook

Sheet シミュレータ
Q1: 電力切替シミュレーター
B2: 1.現在ご利用中の電力会社 | AL2: by
C3: 東北電力 | Q3: ="AIでんきにお切り替えいただくと、電気代が"&TEXT(AF19*-1,"0,000")&"円お得になる可能性があります！" -> AIでんきにお切り替えいただくと、電気代が0,000円お得になる可能性があります！
B5: 2.電力プラン
C6: 従量電灯B(A) | Q6: 月 | T6: いままでの電気代 | Z6: AIでんきの電気代 | AF6: 削減額 | AI6: 参考使用量 | AL6: 使用量(手入力)
Q7: =マスタ!C51 -> 1月 | T7: =ROUND(マスタ!H69,0) -> 0 | Z7: =ROUND(マスタ!P69,0) -> 0 | AF7: =Z7-T7 -> 0 | AI7: =マスタ!F51 -> 0
B8: ="3.ご契約電力"&IF(C6="低圧電力(KW)","(KW)",IF(RIGHT(C6,3)="(A)","(A)","(kVA)")) -> 3.ご契約電力(A) | Q8: =マスタ!C52 -> 2月 | T8: =ROUND(マスタ!H70,0) -> 0 | Z8: =ROUND(マスタ!P70,0) -> 0 | AF8: =Z8-T8 -> 0 | AI8: =マスタ!F52 -> 0
J9: =IF(RIGHT(B8,3)="(A)","(A)",IF(RIGHT(B8,4)="(KW)","(KW)","(kVA)")) -> (A) | Q9: =マスタ!C53 -> 3月 | T9: =ROUND(マスタ!H71,0) -> 0 | Z9: =ROUND(マスタ!P71,0) -> 0 | AF9: 0 | AI9: =マスタ!F53 -> 0
Q10: =マスタ!C54 -> 4月 | T10: =ROUND(マスタ!H72,0) -> 0 | Z10: =ROUND(マスタ!P72,0) -> 0 | AF10: 0 | AI10: =マスタ!F54 -> 0
B11: 4.対象月 | Q11: =マスタ!C55 -> 5月 | T11: =ROUND(マスタ!H73,0) -> 0 | Z11: =ROUND(マスタ!P73,0) -> 0 | AF11: =Z11-T11 -> 0 | AI11: =マスタ!F55 -> 0
C12: 4月 | Q12: =マスタ!C56 -> 6月 | T12: =ROUND(マスタ!H74,0) -> 0 | Z12: =ROUND(マスタ!P74,0) -> 0 | AF12: 0 | AI12: =マスタ!F56 -> 0
Q13: =マスタ!C57 -> 7月 | T13: =ROUND(マスタ!H75,0) -> 0 | Z13: =ROUND(マスタ!P75,0) -> 0 | AF13: 0 | AI13: =マスタ!F57 -> 0
B14: 5.月間使用量 | Q14: =マスタ!C58 -> 8月 | T14: =ROUND(マスタ!H76,0) -> 0 | Z14: =ROUND(マスタ!P76,0) -> 0 | AF14: 0 | AI14: =マスタ!F58 -> 0
J15: =IF(C15="","","kWh") ->  | Q15: =マスタ!C59 -> 9月 | T15: =ROUND(マスタ!H77,0) -> 0 | Z15: =ROUND(マスタ!P77,0) -> 0 | AF15: 0 | AI15: =マスタ!F59 -> 0
Q16: =マスタ!C60 -> 10月 | T16: =ROUND(マスタ!H78,0) -> 0 | Z16: =ROUND(マスタ!P78,0) -> 0 | AF16: 0 | AI16: =マスタ!F60 -> 0
Q17: =マスタ!C61 -> 11月 | T17: =ROUND(マスタ!H79,0) -> 0 | Z17: =ROUND(マスタ!P79,0) -> 0 | AF17: 0 | AI17: =マスタ!F61 -> 0
Q18: =マスタ!C62 -> 12月 | T18: =ROUND(マスタ!H80,0) -> 0 | Z18: =ROUND(マスタ!P80,0) -> 0 | AF18: 0 | AI18: =マスタ!F62 -> 0
Q19: 合計 | T19: =SUM(T7:Y18) -> 0 | Z19: =SUM(Z7:AE18) -> 0 | AF19: =IF(AL19="",Z19-T19,Z19-SUM(マスタ!D81:G81)) -> 0 | AI19: =SUM(AI7:AK18) -> 0
C21: ※ | D21: 見積書の数値や名称を変更する場合は基本的にシュミレーターから変更してください。
D22: 低圧と従量でそれぞれ見積書フォーマットが異なりますので、電力プランをご確認の上ボタンを押してください。

Sheet 従量電灯
A1: 電力切替 御見積書 | Q1: =TODAY() -> 2018-07-26
A4: 1. お客様情報 | L4: 3.ご提案単価
A6: ご契約名義 | E6: 様 | F6: 管区 | J6: エリア | L6: 基本料金 | N6: 従量料金
A7: 施設名 | F7: 契約種別
A8: 施設タイプ | F8: 契約電力 | J8: A | L8: =O15 -> 0 | N8: =IF(シミュレータ!J9="(A)",VLOOKUP(シミュレータ!$C$3,マスタ!$B$2:$P$11,9,FALSE),IF(シミュレータ!J9="(kVA)",VLOOKUP(シミュレータ!$C$3,マスタ!$B$12:$P$20,9,0),VLOOKUP(シミュレータ!$C$3,マスタ!B21:R30,14,FALSE))) -> 25.9
A10: 2.ご使用実績（現状） | L10: 4. 新料金資産
L11: 試算条件： | M11: 力率85％
A12: 現料金単価 | B12: 基本料金 | C12: 従量料金 | M12: 再生可能エネルギー賦課金、燃料調整費は含まれておりません。
B13: =H15/B15 ->  | C13: =IF(シミュレータ!J9="(A)",VLOOKUP(シミュレータ!$C$3,マスタ!$B$2:$P$11,5,FALSE),IF(シミュレータ!J9="(kVA)",VLOOKUP(シミュレータ!$C$3,マスタ!$B$12:$P$20,5,0),VLOOKUP(シミュレータ!$C$3,マスタ!B21:R30,14,FALSE))) -> 18.24 | D13: =IF(シミュレータ!J9="(A)",VLOOKUP(シミュレータ!$C$3,マスタ!$B$2:$P$11,6,FALSE),IF(シミュレータ!J9="(kVA)",VLOOKUP(シミュレータ!$C$3,マスタ!$B$12:$P$20,6,0),VLOOKUP(シミュレータ!$C$3,マスタ!B21:R30,14,FALSE))) -> 24.87 | E13: =IF(シミュレータ!J9="(A)",VLOOKUP(シミュレータ!$C$3,マスタ!$B$2:$P$11,7,FALSE),IF(シミュレータ!J9="(kVA)",VLOOKUP(シミュレータ!$C$3,マスタ!$B$12:$P$20,7,0),VLOOKUP(シミュレータ!$C$3,マスタ!B21:R30,14,FALSE))) -> 28.75 | M13: 金額はすべて税込（8％）で算定しています。
A14: 年月 | B14: 契約電力 | C14: 1段階 | D14: 2段階 | E14: 3段階 | G14: 使用量合計 | H14: 基本料金 | I14: 従量料金 | J14: 現電力料金 | L14: 年月 | M14: 契約電力 | N14: 使用電力量 | O14: 基本料金 | P14: 従量料金 | Q14: 新電力料金 | R14: 削減額 | S14: 削減率
A15: 2017年04月 | B15: =$G$8 -> 0 | C15: =マスタ!G54 -> 0 | D15: =マスタ!H54 -> 0 | E15: =マスタ!I54 -> 0 | G15: =SUMIF(C15:F15,">=1",C15:F15) -> 0 | H15: =マスタ!C69 -> 0 | I15: =SUM(マスタ!D72:F72) -> 0 | J15: =シミュレータ!T10 -> 0 | L15: 2017年04月 | M15: =B15 -> 0 | N15: =G15 -> 0 | O15: =マスタ!K72 -> 0 | P15: =SUM(マスタ!L69:N69) -> 0 | Q15: =シミュレータ!Z10 -> 0 | R15: =シミュレータ!AF10 -> 0 | S15: =R15/J15 -> 
A16: 2017年05月 | B16: 0 | C16: =マスタ!G55 -> 0 | D16: =マスタ!H55 -> 0 | E16: =マスタ!I55 -> 0 | G16: =SUMIF(C16:F16,">=1",C16:F16) -> 0 | H16: =マスタ!C70 -> 0 | I16: =SUM(マスタ!D73:F73) -> 0 | J16: =シミュレータ!T11 -> 0 | L16: 2017年05月 | M16: 0 | N16: 0 | O16: =マスタ!K73 -> 0 | P16: =SUM(マスタ!L70:N70) -> 0 | Q16: =シミュレータ!Z11 -> 0 | R16: =シミュレータ!AF11 -> 0 | S16: =R16/J16 -> 
A17: 2017年06月 | B17: 0 | C17: =マスタ!G56 -> 0 | D17: =マスタ!H56 -> 0 | E17: =マスタ!I56 -> 0 | G17: 0 | H17: =マスタ!C71 -> 0 | I17: =SUM(マスタ!D74:F74) -> 0 | J17: =シミュレータ!T12 -> 0 | L17: 2017年06月 | M17: 0 | N17: 0 | O17: =マスタ!K74 -> 0 | P17: =SUM(マスタ!L71:N71) -> 0 | Q17: =シミュレータ!Z12 -> 0 | R17: =シミュレータ!AF12 -> 0
A18: 2017年07月 | B18: 0 | C18: =マスタ!G57 -> 0 | D18: =マスタ!H57 -> 0 | E18: =マスタ!I57 -> 0 | G18: 0 | H18: =マスタ!C72 -> 0 | I18: =SUM(マスタ!D75:F75) -> 0 | J18: =シミュレータ!T13 -> 0 | L18: 2017年07月 | M18: 0 | N18: 0 | O18: =マスタ!K75 -> 0 | P18: =SUM(マスタ!L72:N72) -> 0 | Q18: =シミュレータ!Z13 -> 0 | R18: =シミュレータ!AF13 -> 0
A19: 2017年08月 | B19: 0 | C19: =マスタ!G58 -> 0 | D19: =マスタ!H58 -> 0 | E19: =マスタ!I58 -> 0 | G19: 0 | H19: =マスタ!C73 -> 0 | I19: =SUM(マスタ!D76:F76) -> 0 | J19: =シミュレータ!T14 -> 0 | L19: 2017年08月 | M19: 0 | N19: 0 | O19: =マスタ!K76 -> 0 | P19: =SUM(マスタ!L73:N73) -> 0 | Q19: =シミュレータ!Z14 -> 0 | R19: =シミュレータ!AF14 -> 0
A20: 2017年09月 | B20: 0 | C20: =マスタ!G59 -> 0 | D20: =マスタ!H59 -> 0 | E20: =マスタ!I59 -> 0 | G20: 0 | H20: =マスタ!C74 -> 0 | I20: =SUM(マスタ!D77:F77) -> 0 | J20: =シミュレータ!T15 -> 0 | L20: 2017年09月 | M20: 0 | N20: 0 | O20: =マスタ!K77 -> 0 | P20: =SUM(マスタ!L74:N74) -> 0 | Q20: =シミュレータ!Z15 -> 0 | R20: =シミュレータ!AF15 -> 0
A21: 2017年10月 | B21: 0 | C21: =マスタ!G60 -> 0 | D21: =マスタ!H60 -> 0 | E21: =マスタ!I60 -> 0 | G21: 0 | H21: =マスタ!C75 -> 0 | I21: =SUM(マスタ!D78:F78) -> 0 | J21: =シミュレータ!T16 -> 0 | L21: 2017年10月 | M21: 0 | N21: 0 | O21: =マスタ!K78 -> 0 | P21: =SUM(マスタ!L75:N75) -> 0 | Q21: =シミュレータ!Z16 -> 0 | R21: =シミュレータ!AF16 -> 0
A22: 2017年11月 | B22: 0 | C22: =マスタ!G61 -> 0 | D22: =マスタ!H61 -> 0 | E22: =マスタ!I61 -> 0 | G22: 0 | H22: =マスタ!C76 -> 0 | I22: =SUM(マスタ!D79:F79) -> 0 | J22: =シミュレータ!T17 -> 0 | L22: 2017年11月 | M22: 0 | N22: 0 | O22: =マスタ!K79 -> 0 | P22: =SUM(マスタ!L76:N76) -> 0 | Q22: =シミュレータ!Z17 -> 0 | R22: =シミュレータ!AF17 -> 0
A23: 2017年12月 | B23: 0 | C23: =マスタ!G62 -> 0 | D23: =マスタ!H62 -> 0 | E23: =マスタ!I62 -> 0 | G23: 0 | H23: =マスタ!C77 -> 0 | I23: =SUM(マスタ!D80:F80) -> 0 | J23: =シミュレータ!T18 -> 0 | L23: 2017年12月 | M23: 0 | N23: 0 | O23: =マスタ!K80 -> 0 | P23: =SUM(マスタ!L77:N77) -> 0 | Q23: =シミュレータ!Z18 -> 0 | R23: =シミュレータ!AF18 -> 0
A24: 2017-01-01 | B24: 0 | C24: =マスタ!G51 -> 0 | D24: =マスタ!H51 -> 0 | E24: =マスタ!I51 -> 0 | G24: 0 | H24: =マスタ!C69 -> 0 | I24: =SUM(マスタ!D69:F69) -> 0 | J24: =シミュレータ!T7 -> 0 | L24: 2017-01-01 | M24: 0 | N24: 0 | O24: =マスタ!K69 -> 0 | P24: =SUM(マスタ!L69:N69) -> 0 | Q24: =シミュレータ!Z7 -> 0 | R24: =シミュレータ!AF7 -> 0
A25: 2017-02-01 | B25: 0 | C25: =マスタ!G52 -> 0 | D25: =マスタ!H52 -> 0 | E25: =マスタ!I52 -> 0 | G25: 0 | H25: =マスタ!C70 -> 0 | I25: =SUM(マスタ!D70:F70) -> 0 | J25: =シミュレータ!T8 -> 0 | L25: 2017-02-01 | M25: 0 | N25: 0 | O25: =マスタ!K70 -> 0 | P25: =SUM(マスタ!L70:N70) -> 0 | Q25: =シミュレータ!Z8 -> 0 | R25: =シミュレータ!AF8 -> 0
A26: 2017-03-01 | B26: 0 | C26: =マスタ!G53 -> 0 | D26: =マスタ!H53 -> 0 | E26: =マスタ!I53 -> 0 | G26: 0 | H26: =マスタ!C71 -> 0 | I26: =SUM(マスタ!D71:F71) -> 0 | J26: =シミュレータ!T9 -> 0 | L26: 2017-03-01 | M26: 0 | N26: 0 | O26: =マスタ!K71 -> 0 | P26: =SUM(マスタ!L71:N71) -> 0 | Q26: =シミュレータ!Z9 -> 0 | R26: =シミュレータ!AF9 -> 0
A27: 合 計 | C27: =SUM(C15:C26) -> 0 | D27: =SUM(D15:D26) -> 0 | E27: 0 | F27: 0 | G27: 0 | H27: 0 | I27: 0 | J27: 0 | L27: 合 計 | N27: =SUM(N15:N26) -> 0 | O27: =SUM(O15:O26) -> 0 | P27: =SUM(P15:P26) -> 0 | Q27: =SUM(Q15:Q26) -> 0 | R27: =SUM(R15:R26) -> 0 | S27: =R27/J27 -> 
H29: 東京都港区元赤坂1-1-7オリエント赤坂モートサイドビル2F 株式会社パワー・オプティマイザー TEL:03-4400-1796

Sheet 動力
A1: 電力切替 御見積書 | Q1: =TODAY() -> 2018-07-26
A4: 1. お客様情報 | L4: 3.ご提案単価
A6: ご契約名義 | E6: 様 | F6: 管区 | J6: エリア | L6: 基本料金 | N6: 従量料金
A7: 施設名 | F7: 契約種別 | N7: 夏季 | O7: 他季
A8: 施設タイプ | F8: 契約電力 | H8: kW | I8: 力率 | J8: 0.85 | L8: =IF(シミュレータ!J9="(A)",VLOOKUP(シミュレータ!$C$3,マスタ!$B$2:$P$11,3,FALSE),IF(シミュレータ!J9="(kVA)",VLOOKUP(シミュレータ!$C$3,マスタ!$B$12:$P$20,3,0),VLOOKUP(シミュレータ!$C$3,マスタ!B21:R30,14,FALSE))) -> 324 | N8: =IF(G6=マスタ!B22,マスタ!Q22,IF(G6=マスタ!B5,マスタ!Q23,24)) -> 24 | O8: =IF(G6=マスタ!B22,マスタ!R22,IF(G6=マスタ!B5,マスタ!R23,IF(G6=マスタ!B21,マスタ!R21,22))) -> 22
A10: 2.ご使用実績（現状） | L10: 4. 新料金資産
L11: 試算条件： | M11: 力率 | N11: =J8 -> 0.85
A12: 現料金単価 | B12: 基本料金 | C12: 従量料金 | M12: 再生可能エネルギー賦課金、燃料調整費は含まれておりません。
B13: =マスタ!C69/B15 ->  | C13: =IF(シミュレータ!J9="(A)",VLOOKUP(シミュレータ!$C$3,マスタ!$B$2:$P$11,6,FALSE),IF(シミュレータ!J9="(kVA)",VLOOKUP(シミュレータ!$C$3,マスタ!$B$12:$P$20,6,0),VLOOKUP(シミュレータ!$C$3,マスタ!B21:R30,12,FALSE))) -> 24.87 | D13: =IF(シミュレータ!J9="(A)",VLOOKUP(シミュレータ!$C$3,マスタ!$B$2:$P$11,6,FALSE),IF(シミュレータ!J9="(kVA)",VLOOKUP(シミュレータ!$C$3,マスタ!$B$12:$P$20,6,0),VLOOKUP(シミュレータ!$C$3,マスタ!B21:R30,13,FALSE))) -> 24.87 | M13: 金額はすべて税込（8％）で算定しています。
A14: 年月 | B14: 契約電力 | C14: 夏季 | D14: 他季 | G14: 使用量合計 | H14: 基本料金 | I14: 従量料金 | J14: 現電力料金 | L14: 年月 | M14: 契約電力 | N14: 使用電力量 | O14: 基本料金 | P14: 従量料金 | Q14: 新電力料金 | R14: 削減額 | S14: 削減率
A15: 2017年04月 | B15: =$G$8 -> 0 | D15: =IF(シミュレータ!AL10=0,シミュレータ!AI10,シミュレータ!AL10) -> 0 | G15: =SUM(C15:F15) -> 0 | H15: =マスタ!C69 -> 0 | I15: =B15*D15 -> 0 | J15: =シミュレータ!T10 -> 0 | L15: 2017年04月 | M15: =B15 -> 0 | N15: =G15 -> 0 | O15: =マスタ!K72 -> 0 | P15: =SUM(マスタ!L69:N69) -> 0 | Q15: =シミュレータ!Z10 -> 0 | R15: =シミュレータ!AF10 -> 0 | S15: =R15/J15 -> 
A16: 2017年05月 | B16: 0 | D16: =IF(シミュレータ!AL11=0,シミュレータ!AI11,シミュレータ!AL11) -> 0 | G16: =SUM(C16:F16) -> 0 | H16: =マスタ!C70 -> 0 | I16: =B16*D16 -> 0 | J16: =シミュレータ!T11 -> 0 | L16: 2017年05月 | M16: 0 | N16: 0 | O16: =マスタ!K73 -> 0 | P16: =SUM(マスタ!L70:N70) -> 0 | Q16: =シミュレータ!Z11 -> 0 | R16: =シミュレータ!AF11 -> 0
A17: 2017年06月 | B17: 0 | D17: =IF(シミュレータ!AL12=0,シミュレータ!AI12,シミュレータ!AL12) -> 0 | G17: 0 | H17: =マスタ!C71 -> 0 | I17: 0 | J17: =シミュレータ!T12 -> 0 | L17: 2017年06月 | M17: 0 | N17: 0 | O17: =マスタ!K74 -> 0 | P17: =SUM(マスタ!L71:N71) -> 0 | Q17: =シミュレータ!Z12 -> 0 | R17: =シミュレータ!AF12 -> 0
A18: 2017年07月 | B18: 0 | C18: =IF(シミュレータ!AL13=0,シミュレータ!AI13,シミュレータ!AL13) -> 0 | G18: 0 | H18: =マスタ!C72 -> 0 | I18: =B18*C18 -> 0 | J18: =シミュレータ!T13 -> 0 | L18: 2017年07月 | M18: 0 | N18: 0 | O18: =マスタ!K75 -> 0 | P18: =SUM(マスタ!L72:N72) -> 0 | Q18: =シミュレータ!Z13 -> 0 | R18: =シミュレータ!AF13 -> 0
A19: 2017年08月 | B19: 0 | C19: =IF(シミュレータ!AL14=0,シミュレータ!AI14,シミュレータ!AL14) -> 0 | G19: 0 | H19: =マスタ!C73 -> 0 | I19: =B19*C19 -> 0 | J19: =シミュレータ!T14 -> 0 | L19: 2017年08月 | M19: 0 | N19: 0 | O19: =マスタ!K76 -> 0 | P19: =SUM(マスタ!L73:N73) -> 0 | Q19: =シミュレータ!Z14 -> 0 | R19: =シミュレータ!AF14 -> 0
A20: 2017年09月 | B20: 0 | C20: =IF(シミュレータ!AL15=0,シミュレータ!AI15,シミュレータ!AL15) -> 0 | G20: 0 | H20: =マスタ!C74 -> 0 | I20: =B20*C20 -> 0 | J20: =シミュレータ!T15 -> 0 | L20: 2017年09月 | M20: 0 | N20: 0 | O20: =マスタ!K77 -> 0 | P20: =SUM(マスタ!L74:N74) -> 0 | Q20: =シミュレータ!Z15 -> 0 | R20: =シミュレータ!AF15 -> 0
A21: 2017年10月 | B21: 0 | D21: =IF(シミュレータ!AL16=0,シミュレータ!AI16,シミュレータ!AL16) -> 0 | G21: 0 | H21: =マスタ!C75 -> 0 | I21: 0 | J21: =シミュレータ!T16 -> 0 | L21: 2017年10月 | M21: 0 | N21: 0 | O21: =マスタ!K78 -> 0 | P21: =SUM(マスタ!L75:N75) -> 0 | Q21: =シミュレータ!Z16 -> 0 | R21: =シミュレータ!AF16 -> 0
A22: 2017年11月 | B22: 0 | D22: =IF(シミュレータ!AL17=0,シミュレータ!AI17,シミュレータ!AL17) -> 0 | G22: 0 | H22: =マスタ!C76 -> 0 | I22: 0 | J22: =シミュレータ!T17 -> 0 | L22: 2017年11月 | M22: 0 | N22: 0 | O22: =マスタ!K79 -> 0 | P22: =SUM(マスタ!L76:N76) -> 0 | Q22: =シミュレータ!Z17 -> 0 | R22: =シミュレータ!AF17 -> 0
A23: 2017年12月 | B23: 0 | D23: =IF(シミュレータ!AL18=0,シミュレータ!AI18,シミュレータ!AL18) -> 0 | G23: 0 | H23: =マスタ!C77 -> 0 | I23: 0 | J23: =シミュレータ!T18 -> 0 | L23: 2017年12月 | M23: 0 | N23: 0 | O23: =マスタ!K80 -> 0 | P23: =SUM(マスタ!L77:N77) -> 0 | Q23: =シミュレータ!Z18 -> 0 | R23: =シミュレータ!AF18 -> 0
A24: 2017-01-01 | B24: 0 | D24: =IF(シミュレータ!AL7=0,シミュレータ!AI7,シミュレータ!AL7) -> 0 | G24: 0 | H24: =マスタ!C69 -> 0 | I24: 0 | J24: =シミュレータ!T7 -> 0 | L24: 2017-01-01 | M24: 0 | N24: 0 | O24: =マスタ!K69 -> 0 | P24: =SUM(マスタ!L69:N69) -> 0 | Q24: =シミュレータ!Z7 -> 0 | R24: =シミュレータ!AF7 -> 0
A25: 2017-02-01 | B25: 0 | D25: =IF(シミュレータ!AL8=0,シミュレータ!AI8,シミュレータ!AL8) -> 0 | G25: =SUM(C25:F25) -> 0 | H25: =マスタ!C70 -> 0 | I25: 0 | J25: =シミュレータ!T8 -> 0 | L25: 2017-02-01 | M25: 0 | N25: 0 | O25: =マスタ!K70 -> 0 | P25: =SUM(マスタ!L70:N70) -> 0 | Q25: =シミュレータ!Z8 -> 0 | R25: =シミュレータ!AF8 -> 0
A26: 2017-03-01 | B26: 0 | D26: =IF(シミュレータ!AL9=0,シミュレータ!AI9,シミュレータ!AL9) -> 0 | G26: =SUM(C26:F26) -> 0 | H26: =マスタ!C71 -> 0 | I26: 0 | J26: =シミュレータ!T9 -> 0 | L26: 2017-03-01 | M26: 0 | N26: 0 | O26: =マスタ!K71 -> 0 | P26: =SUM(マスタ!L71:N71) -> 0 | Q26: =シミュレータ!Z9 -> 0 | R26: =シミュレータ!AF9 -> 0
A27: 合 計 | C27: =SUM(C15:C26) -> 0 | D27: 0 | E27: 0 | F27: 0 | G27: 0 | H27: 0 | I27: 0 | J27: 0 | L27: 合 計 | N27: =SUM(N15:N26) -> 0 | O27: =SUM(O15:O26) -> 0 | P27: =SUM(P15:P26) -> 0 | Q27: =SUM(Q15:Q26) -> 0 | R27: =SUM(R15:R26) -> 0 | S27: =R27/J27 -> 
H29: 東京都港区元赤坂1-1-7オリエント赤坂モートサイドビル2F 株式会社パワー・オプティマイザー TEL:03-4400-1796

Sheet マスタ
A1: 計算用 | D1: 電灯 | K1: 動力
B2: エリア | C2: プラン | D2: 基本料金 | E2: 基本料金 | F2: 第一段階 | G2: 第二段階 | H2: 第三段階 | I2: PO基本 | J2: PO従量1 | K2: 基本料金 | L2: 基本料金 | M2: 夏季 | N2: 他季 | O2: OP基本料金 | P2: OP基本料金 | Q2: OP夏季 | R2: OP他季
B3: 北海道電力 | C3: 従量電灯B(A) | D3: 334.8 | E3: =D3*(シミュレータ!$C$9/10) -> 0 | F3: 23.54 | G3: 29.7 | H3: 33.37 | I3: 0 | J3: 28.9
B4: 東北電力 | C4: 従量電灯B(A) | D4: 324 | E4: =D4*(シミュレータ!$C$9/10) -> 0 | F4: 18.24 | G4: 24.87 | H4: 28.75 | I4: 0 | J4: 25.9
B5: 東京電力EP | C5: 従量電灯B(A) | D5: 280.8 | E5: =D5*(シミュレータ!$C$9/10) -> 0 | F5: 19.52 | G5: 26 | H5: 30.02 | I5: 0 | J5: 25.9
B6: 中部電力 | C6: 従量電灯B(A) | D6: 280.8 | E6: =D6*(シミュレータ!$C$9/10) -> 0 | F6: 20.68 | G6: 25.08 | H6: 27.97 | I6: 0 | J6: 26.9
B7: 北陸電力 | C7: 従量電灯B(A) | D7: 237.6 | E7: =D7*(シミュレータ!$C$9/10) -> 0 | F7: 17.52 | G7: 21.33 | H7: 23.02 | I7: 0 | J7: 25.9
B8: 関西電力 | C8: 従量電灯A（A) | D8: 327.65 | E8: =D8 -> 327.65 | F8: 19.76 | G8: 26.19 | H8: 29.94 | I8: 0 | J8: 25.9
B9: 中国電力 | C9: 従量電灯A（A) | D9: 331.23 | E9: =D9 -> 331.23 | F9: 20.4 | G9: 26.96 | H9: 29.04 | I9: 0 | J9: 25.9
B10: 四国電力 | C10: 従量電灯A（A) | D10: 403.92 | E10: =D10 -> 403.92 | F10: 20 | G10: 26.5 | H10: 29.95 | I10: 0 | J10: 25.9
B11: 九州電力 | C11: 従量電灯B(A) | D11: 291.6 | E11: =D11*(シミュレータ!$C$9/10) -> 0 | F11: 17.19 | G11: 22.69 | H11: 25.63 | I11: 0 | J11: 25.9
B12: 北海道電力 | C12: 従量電灯C(kVA) | D12: 334.8 | E12: =D12*(シミュレータ!$C$9/10) -> 0 | F12: 23.54 | G12: 29.72 | H12: 33.37 | I12: 0 | J12: 29.9
B13: 東北電力 | C13: 従量電灯C(kVA) | D13: 324 | E13: =D13*(シミュレータ!$C$9) -> 0 | F13: 18.24 | G13: 24.87 | H13: 28.75 | I13: 0 | J13: 26.9
B14: 東京電力EP | C14: 従量電灯C(kVA) | D14: 280.8 | E14: =D14*(シミュレータ!$C$9) -> 0 | F14: 19.52 | G14: 26 | H14: 30.02 | I14: 0 | J14: 26.9
B15: 中部電力 | C15: 従量電灯C(kVA) | D15: 280.8 | E15: =D15*(シミュレータ!$C$9) -> 0 | F15: 20.68 | G15: 25.08 | H15: 27.97 | I15: 0 | J15: 27.9
B16: 北陸電力 | C16: 従量電灯C(kVA) | D16: 237.6 | E16: =D16*(シミュレータ!$C$9) -> 0 | F16: 17.52 | G16: 21.33 | H16: 23.02 | I16: 0 | J16: 26.9
B17: 関西電力 | C17: 従量電灯B(kVA) | D17: 388.8 | E17: =D17*(シミュレータ!$C$9) -> 0 | F17: 17.4 | G17: 21.68 | H17: 24.95 | I17: 0 | J17: 26.9
B18: 中国電力 | C18: 従量電灯B(kVA) | D18: 399.6 | E18: =D18*(シミュレータ!$C$9) -> 0 | F18: 17.76 | G18: 23.74 | H18: 25.58 | I18: 0 | J18: 26.9
B19: 四国電力 | C19: 従量電灯B(kVA) | D19: 367.2 | E19: =D19*(シミュレータ!$C$9) -> 0 | F19: 16.66 | G19: 22.09 | H19: 24.96 | I19: 0 | J19: 26.9
B20: 九州電力 | C20: 従量電灯C(kVA) | D20: 324 | E20: =D20*(シミュレータ!$C$9) -> 0 | F20: 18.24 | G20: 24.87 | H20: 28.75 | I20: 0 | J20: 25.9
B21: 北海道電力 | K21: 1263.6 | L21: =K21*シミュレータ!$C$9*(IF(動力!$J$8=85%,1,IF(動力!$J$8=90%,1.05,IF(動力!$J$8=80%,0.95)))) -> 0 | M21: 17.35 | N21: 17.35 | O21: 523.8 | P21: =O21*シミュレータ!$C$9 -> 0 | Q21: 24 | R21: 24
B22: 東北電力 | C22: 低圧電力(KW) | K22: 1242 | L22: =K22*シミュレータ!$C$9*(IF(動力!$J$8=85%,1,IF(動力!$J$8=90%,1.05,IF(動力!$J$8=80%,0.95)))) -> 0 | M22: 15.66 | N22: 14.23 | O22: 572.4 | P22: =O22*シミュレータ!$C$9 -> 0 | Q22: 25 | R22: 23
B23: 東京電力EP | C23: 低圧電力(KW) | K23: 1101.6 | L23: =K23*シミュレータ!$C$9*(IF(動力!$J$8=85%,1,IF(動力!$J$8=90%,1.05,IF(動力!$J$8=80%,0.95)))) -> 0 | M23: 17.06 | N23: 15.51 | O23: 691.2 | P23: =O23*シミュレータ!$C$9 -> 0 | Q23: 19.5 | R23: 21.5
B24: 中部電力 | C24: 低圧電力(KW) | K24: 1123.2 | L24: =K24*シミュレータ!$C$9*(IF(動力!$J$8=85%,1,IF(動力!$J$8=90%,1.05,IF(動力!$J$8=80%,0.95)))) -> 0 | M24: 16.73 | N24: 15.21 | O24: 496.8 | P24: =O24*シミュレータ!$C$9 -> 0 | Q24: 24 | R24: 22
B25: 北陸電力 | C25: 低圧電力(KW) | K25: 1144.8 | L25: =K25*シミュレータ!$C$9*(IF(動力!$J$8=85%,1,IF(動力!$J$8=90%,1.05,IF(動力!$J$8=80%,0.95)))) -> 0 | M25: 11.93 | N25: 10.89 | O25: 453.6 | P25: =O25*シミュレータ!$C$9 -> 0 | Q25: 24 | R25: 22
B26: 北陸電力 | C26: 低圧電力Ⅱ(KW) | K26: 972 | L26: =K26*シミュレータ!$C$9*(IF(動力!$J$8=85%,1,IF(動力!$J$8=90%,1.05,IF(動力!$J$8=80%,0.95)))) -> 0 | M26: 18.56 | N26: 16.91 | O26: 453.6 | P26: =O26*シミュレータ!$C$9 -> 0 | Q26: 24 | R26: 22
B27: 関西電力 | C27: 低圧電力(KW) | K27: 1058.4 | L27: =K27*シミュレータ!$C$9*(IF(動力!$J$8=85%,1,IF(動力!$J$8=90%,1.05,IF(動力!$J$8=80%,0.95)))) -> 0 | M27: 14.82 | N27: 13.37 | O27: 421.2 | P27: =O27*シミュレータ!$C$9 -> 0 | Q27: 24 | R27: 22
B28: 中国電力 | K28: 1090.8 | L28: =K28*シミュレータ!$C$9*(IF(動力!$J$8=85%,1,IF(動力!$J$8=90%,1.05,IF(動力!$J$8=80%,0.95)))) -> 0 | M28: 14.75 | N28: 13.49 | O28: 453.6 | P28: =O28*シミュレータ!$C$9 -> 0 | Q28: 24 | R28: 22
B29: 四国電力 | K29: 1096 | L29: =K29*シミュレータ!$C$9*(IF(動力!$J$8=85%,1,IF(動力!$J$8=90%,1.05,IF(動力!$J$8=80%,0.95)))) -> 0 | M29: 15.51 | N29: 14.09 | O29: 448.2 | P29: =O29*シミュレータ!$C$9 -> 0 | Q29: 24 | R29: 22
B30: 九州電力 | C30: 低圧電力(KW) | K30: 993.6 | L30: =K30*シミュレータ!$C$9*(IF(動力!$J$8=85%,1,IF(動力!$J$8=90%,1.05,IF(動力!$J$8=80%,0.95)))) -> 0 | M30: 16.85 | N30: 15.2 | O30: 545.4 | P30: =O30*シミュレータ!$C$9 -> 0 | Q30: 24 | R30: 22
A31: プラン表示用
B32: =VLOOKUP(シミュレータ!$C$3,マスタ!$B$3:$C$11,2,FALSE) -> 従量電灯B(A)
B33: =VLOOKUP(シミュレータ!$C$3,マスタ!$B$12:$C$20,2,FALSE) -> 従量電灯C(kVA)
B34: =VLOOKUP(シミュレータ!$C$3,マスタ!$B$21:$C$29,2,FALSE) -> 低圧電力(KW)
A36: 対象月表示用 | D36: 1月 | F36: 2月 | G36: 3月 | H36: 4月 | I36: 5月 | J36: 6月 | K36: 7月 | L36: 8月 | M36: 9月 | N36: 10月 | O36: 11月 | P36: 12月
B37: 1月 | C37: 1000 | D37: 1 | F37: =C37/$C$38 -> 1.126126126 | G37: =C37/$C$39 -> 1.176470588 | H37: =C37/$C$40 -> 1.438848921 | I37: =C37/$C$41 -> 1.526717557 | J37: =C37/$C$42 -> 1.522070015 | K37: =C37/$C$43 -> 1.145475372 | L37: =C37/$C$44 -> 1.082251082 | M37: =C37/$C$45 -> 1.474926254 | N37: =C37/$C$46 -> 1.503759398 | O37: =C37/$C$47 -> 1.426533524 | P37: =C37/$C$48 -> 1.042752868
B38: 2月 | C38: 888 | D38: =C38/$C$37 -> 0.888 | F38: =C38/$C$38 -> 1 | G38: =C38/$C$39 -> 1.044705882 | H38: =C38/$C$40 -> 1.277697842 | I38: =C38/$C$41 -> 1.355725191 | J38: =C38/$C$42 -> 1.351598174 | K38: =C38/$C$43 -> 1.017182131 | L38: =C38/$C$44 -> 0.961038961 | M38: =C38/$C$45 -> 1.309734513 | N38: =C38/$C$46 -> 1.335338346 | O38: =C38/$C$47 -> 1.266761769 | P38: =C38/$C$48 -> 0.9259645464
B39: 3月 | C39: 850 | D39: =C39/$C$37 -> 0.85 | F39: 0.9572072072 | G39: 1 | H39: 1.223021583 | I39: 1.297709924 | J39: 1.293759513 | K39: 0.9736540664 | L39: 0.9199134199 | M39: 1.253687316 | N39: 1.278195489 | O39: 1.212553495 | P39: 0.8863399374
B40: 4月 | C40: 695 | D40: =C40/$C$37 -> 0.695 | F40: 0.7826576577 | G40: 0.8176470588 | H40: 1 | I40: 1.061068702 | J40: 1.057838661 | K40: 0.7961053837 | L40: 0.7521645022 | M40: 1.025073746 | N40: 1.045112782 | O40: 0.9914407989 | P40: 0.724713243
B41: 5月 | C41: 655 | D41: 0.655 | F41: 0.7376126126 | G41: 0.7705882353 | H41: 0.9424460432 | I41: 1 | J41: 0.99695586 | K41: 0.7502863688 | L41: 0.7088744589 | M41: 0.9660766962 | N41: 0.984962406 | O41: 0.9343794579 | P41: 0.6830031283
B42: 6月 | C42: 657 | D42: 0.657 | F42: 0.7398648649 | G42: 0.7729411765 | H42: 0.945323741 | I42: 1.003053435 | J42: 1 | K42: 0.7525773196 | L42: 0.711038961 | M42: 0.9690265487 | N42: 0.9879699248 | O42: 0.937232525 | P42: 0.685088634
B43: 7月 | C43: 873 | D43: 0.873 | F43: 0.9831081081 | G43: 1.027058824 | H43: 1.256115108 | I43: 1.332824427 | J43: 1.328767123 | K43: 1 | L43: 0.9448051948 | M43: 1.287610619 | N43: 1.312781955 | O43: 1.245363766 | P43: 0.9103232534
B44: 8月 | C44: 924 | D44: 0.924 | F44: 1.040540541 | G44: 1.087058824 | H44: 1.329496403 | I44: 1.410687023 | J44: 1.406392694 | K44: 1.058419244 | L44: 1 | M44: 1.362831858 | N44: 1.389473684 | O44: 1.318116976 | P44: 0.9635036496
B45: 9月 | C45: 678 | D45: 0.678 | F45: 0.7635135135 | G45: 0.7976470588 | H45: 0.9755395683 | I45: 1.035114504 | J45: 1.03196347 | K45: 0.7766323024 | L45: 0.7337662338 | M45: 1 | N45: 1.019548872 | O45: 0.967189729 | P45: 0.7069864442
B46: 10月 | C46: 665 | D46: 0.665 | F46: 0.7488738739 | G46: 0.7823529412 | H46: 0.9568345324 | I46: 1.015267176 | J46: 1.01217656 | K46: 0.7617411226 | L46: 0.7196969697 | M46: 0.9808259587 | N46: 1 | O46: 0.9486447932 | P46: 0.6934306569
B47: 11月 | C47: 701 | D47: 0.701 | F47: 0.7894144144 | G47: 0.8247058824 | H47: 1.008633094 | I47: 1.070229008 | J47: 1.066971081 | K47: 0.802978236 | L47: 0.7586580087 | M47: 1.033923304 | N47: 1.054135338 | O47: 1 | P47: 0.7309697602
B48: 12月 | C48: 959 | D48: 0.959 | F48: 1.079954955 | G48: 1.128235294 | H48: 1.379856115 | I48: 1.464122137 | J48: 1.459665145 | K48: 1.098510882 | L48: 1.037878788 | M48: 1.414454277 | N48: 1.442105263 | O48: 1.368045649 | P48: 1
F50: 基本 | G50: 従量1 | H50: 従量2 | I50: 従量3
A51: =シミュレータ!AL7 -> 0 | B51: =VLOOKUP(シミュレータ!C12,シミュレータ!C12,1,FALSE) -> 4月 | C51: 1月 | D51: =HLOOKUP($B$51,$D$36:P48,2,FALSE) -> 1.438848921 | F51: =IF(A51=0,(ROUND($B$52*D51,0)),(ROUND(A51,0))) -> 0 | G51: =IF(F51>120,120,F51) -> 0 | H51: =IF(F51-G51>180,180,IF(F51-G51>0,F51-G51,0)) -> 0 | I51: =IF(F51-SUM(G51:H51)>0,F51-SUM(G51:H51),0) -> 0
A52: =シミュレータ!AL8 -> 0 | B52: =シミュレータ!C15 -> 0 | C52: 2月 | D52: =HLOOKUP($B$51,$D$36:P50,3,FALSE) -> 1.277697842 | F52: =IF(A52=0,(ROUND($B$52*D52,0)),(ROUND(A52,0))) -> 0 | G52: =IF(F52>120,120,F52) -> 0 | H52: =IF(F52-G52>180,180,IF(F52-G52>0,F52-G52,0)) -> 0 | I52: =IF(F52-SUM(G52:H52)>0,F52-SUM(G52:H52),0) -> 0
A53: =シミュレータ!AL9 -> 0 | C53: 3月 | D53: =HLOOKUP($B$51,$D$36:P51,4,FALSE) -> 1.223021583 | F53: =IF(A53=0,(ROUND($B$52*D53,0)),(ROUND(A53,0))) -> 0 | G53: 0 | H53: 0 | I53: =IF(F53-SUM(G53:H53)>0,F53-SUM(G53:H53),0) -> 0
A54: =シミュレータ!AL10 -> 0 | C54: 4月 | D54: =HLOOKUP($B$51,$D$36:P52,5,FALSE) -> 1 | F54: 0 | G54: 0 | H54: 0 | I54: 0
A55: =シミュレータ!AL11 -> 0 | C55: 5月 | D55: =HLOOKUP($B$51,$D$36:P53,6,FALSE) -> 0.9424460432 | F55: 0 | G55: 0 | H55: 0 | I55: 0
A56: =シミュレータ!AL12 -> 0 | C56: 6月 | D56: =HLOOKUP($B$51,$D$36:P54,7,FALSE) -> 0.945323741 | F56: 0 | G56: 0 | H56: 0 | I56: 0
A57: =シミュレータ!AL13 -> 0 | C57: 7月 | D57: =HLOOKUP($B$51,$D$36:P55,8,FALSE) -> 1.256115108 | F57: 0 | G57: 0 | H57: 0 | I57: 0
A58: =シミュレータ!AL14 -> 0 | C58: 8月 | D58: =HLOOKUP($B$51,$D$36:P56,9,FALSE) -> 1.329496403 | F58: 0 | G58: 0 | H58: 0 | I58: 0
A59: =シミュレータ!AL15 -> 0 | C59: 9月 | D59: =HLOOKUP($B$51,$D$36:P57,10,FALSE) -> 0.9755395683 | F59: 0 | G59: 0 | H59: 0 | I59: 0
A60: =シミュレータ!AL16 -> 0 | C60: 10月 | D60: =HLOOKUP($B$51,$D$36:P58,11,FALSE) -> 0.9568345324 | F60: 0 | G60: 0 | H60: 0 | I60: 0
A61: =シミュレータ!AL17 -> 0 | C61: 11月 | D61: =HLOOKUP($B$51,$D$36:P59,12,FALSE) -> 1.008633094 | F61: 0 | G61: 0 | H61: 0 | I61: 0
A62: =シミュレータ!AL18 -> 0 | C62: 12月 | D62: =HLOOKUP($B$51,$D$36:P60,13,FALSE) -> 1.379856115 | F62: 0 | G62: 0 | H62: 0 | I62: 0
A68: 通常 | C68: 基本 | D68: 従量1 | E68: 従量2 | F68: 従量3 | G68: 低圧電力 | H68: 合計 | K68: PO基本 | L68: PO従量1 | M68: PO従量2 | N68: PO従量3 | O68: 低圧電力 | P68: 合計
B69: 1月 | C69: =IF(シミュレータ!J9="(A)",VLOOKUP(シミュレータ!$C$3,マスタ!$B$2:$P$11,4,FALSE),IF(シミュレータ!J9="(kVA)",VLOOKUP(シミュレータ!$C$3,マスタ!$B$12:$P$20,4,0),VLOOKUP(シミュレータ!$C$3,マスタ!$B$21:$P$31,11,FALSE))) -> 0 | D69: =IFERROR(IF(シミュレータ!$J$9="(A)",VLOOKUP(シミュレータ!$C$3,マスタ!$B$3:$P$11,5,FALSE),IF(シミュレータ!$J$9="(kVA)",VLOOKUP(シミュレータ!$C$3,マスタ!$B$12:$P$20,5,FALSE),""))*G51,0) -> 0 | E69: =IFERROR(IF(シミュレータ!$J$9="(A)",VLOOKUP(シミュレータ!$C$3,マスタ!$B$3:$P$11,6,FALSE),IF(シミュレータ!$J$9="(kVA)",VLOOKUP(シミュレータ!$C$3,マスタ!$B$12:$P$20,6,FALSE),""))*H51,0) -> 0 | F69: =IFERROR(IF(シミュレータ!$J$9="(A)",VLOOKUP(シミュレータ!$C$3,マスタ!$B$3:$P$11,7,FALSE),IF(シミュレータ!$J$9="(kVA)",VLOOKUP(シミュレータ!$C$3,マスタ!$B$12:$P$20,7,FALSE),""))*I51,0) -> 0 | G69: =IFERROR(IF(シミュレータ!$J$9="(KW)",VLOOKUP(シミュレータ!$C$3,マスタ!$B$21:$R$29,13,FALSE)*マスタ!F51,0),0) -> 0 | H69: =SUM(C69:G69) -> 0 | J69: 1月 | K69: =IF(シミュレータ!J9="(A)",VLOOKUP(シミュレータ!$C$3,マスタ!$B$2:$P$11,8,FALSE),IF(シミュレータ!J9="(kVA)",VLOOKUP(シミュレータ!$C$3,マスタ!$B$12:$P$20,8,0),VLOOKUP(シミュレータ!$C$3,マスタ!$B$21:$P$30,15,FALSE))) -> 0 | L69: =IFERROR(IF(シミュレータ!$J$9="(A)",VLOOKUP(シミュレータ!$C$3,マスタ!$B$3:$P$11,9,FALSE),IF(シミュレータ!$J$9="(kVA)",VLOOKUP(シミュレータ!$C$3,マスタ!$B$12:$P$20,9,FALSE),""))*G51,0) -> 0 | M69: =IFERROR(IF(シミュレータ!$J$9="(A)",VLOOKUP(シミュレータ!$C$3,マスタ!$B$3:$P$11,9,FALSE),IF(シミュレータ!$J$9="(kVA)",VLOOKUP(シミュレータ!$C$3,マスタ!$B$12:$P$20,9,FALSE),""))*H51,0) -> 0 | N69: =IFERROR(IF(シミュレータ!$J$9="(A)",VLOOKUP(シミュレータ!$C$3,マスタ!$B$3:$P$11,9,FALSE),IF(シミュレータ!$J$9="(kVA)",VLOOKUP(シミュレータ!$C$3,マスタ!$B$12:$P$20,9,FALSE),""))*I51,0) -> 0 | O69: =IFERROR(IF(シミュレータ!$J$9="(KW)",VLOOKUP(シミュレータ!$C$3,マスタ!$B$21:$R$29,17,FALSE)*マスタ!F51,0),0) -> 0 | P69: =SUM(K69:O69) -> 0
B70: 2月 | C70: =$C$69 -> 0 | D70: =IFERROR(IF(シミュレータ!$J$9="(A)",VLOOKUP(シミュレータ!$C$3,マスタ!$B$3:$P$11,5,FALSE),IF(シミュレータ!$J$9="(kVA)",VLOOKUP(シミュレータ!$C$3,マスタ!$B$12:$P$20,5,FALSE),""))*G52,0) -> 0 | E70: =IFERROR(IF(シミュレータ!$J$9="(A)",VLOOKUP(シミュレータ!$C$3,マスタ!$B$3:$P$11,6,FALSE),IF(シミュレータ!$J$9="(kVA)",VLOOKUP(シミュレータ!$C$3,マスタ!$B$12:$P$20,6,FALSE),""))*H52,0) -> 0 | F70: =IFERROR(IF(シミュレータ!$J$9="(A)",VLOOKUP(シミュレータ!$C$3,マスタ!$B$3:$P$11,7,FALSE),IF(シミュレータ!$J$9="(kVA)",VLOOKUP(シミュレータ!$C$3,マスタ!$B$12:$P$20,7,FALSE),""))*I52,0) -> 0 | G70: =IFERROR(IF(シミュレータ!$J$9="(KW)",VLOOKUP(シミュレータ!$C$3,マスタ!$B$21:$R$29,13,FALSE)*マスタ!F52,0),0) -> 0 | H70: =SUM(C70:G70) -> 0 | J70: 2月 | K70: =$K$69 -> 0 | L70: =IFERROR(IF(シミュレータ!$J$9="(A)",VLOOKUP(シミュレータ!$C$3,マスタ!$B$3:$P$11,9,FALSE),IF(シミュレータ!$J$9="(kVA)",VLOOKUP(シミュレータ!$C$3,マスタ!$B$12:$P$20,9,FALSE),""))*G52,0) -> 0 | M70: =IFERROR(IF(シミュレータ!$J$9="(A)",VLOOKUP(シミュレータ!$C$3,マスタ!$B$3:$P$11,9,FALSE),IF(シミュレータ!$J$9="(kVA)",VLOOKUP(シミュレータ!$C$3,マスタ!$B$12:$P$20,9,FALSE),""))*H52,0) -> 0 | N70: =IFERROR(IF(シミュレータ!$J$9="(A)",VLOOKUP(シミュレータ!$C$3,マスタ!$B$3:$P$11,9,FALSE),IF(シミュレータ!$J$9="(kVA)",VLOOKUP(シミュレータ!$C$3,マスタ!$B$12:$P$20,9,FALSE),""))*I52,0) -> 0 | O70: =IFERROR(IF(シミュレータ!$J$9="(KW)",VLOOKUP(シミュレータ!$C$3,マスタ!$B$21:$R$29,17,FALSE)*マスタ!F52,0),0) -> 0 | P70: =SUM(K70:O70) -> 0
B71: 3月 | C71: =$C$69 -> 0 | D71: =IFERROR(IF(シミュレータ!$J$9="(A)",VLOOKUP(シミュレータ!$C$3,マスタ!$B$3:$P$11,5,FALSE),IF(シミュレータ!$J$9="(kVA)",VLOOKUP(シミュレータ!$C$3,マスタ!$B$12:$P$20,5,FALSE),""))*G53,0) -> 0 | E71: =IFERROR(IF(シミュレータ!$J$9="(A)",VLOOKUP(シミュレータ!$C$3,マスタ!$B$3:$P$11,6,FALSE),IF(シミュレータ!$J$9="(kVA)",VLOOKUP(シミュレータ!$C$3,マスタ!$B$12:$P$20,6,FALSE),""))*H53,0) -> 0 | F71: =IFERROR(IF(シミュレータ!$J$9="(A)",VLOOKUP(シミュレータ!$C$3,マスタ!$B$3:$P$11,7,FALSE),IF(シミュレータ!$J$9="(kVA)",VLOOKUP(シミュレータ!$C$3,マスタ!$B$12:$P$20,7,FALSE),""))*I53,0) -> 0 | G71: =IFERROR(IF(シミュレータ!$J$9="(KW)",VLOOKUP(シミュレータ!$C$3,マスタ!$B$21:$R$29,13,FALSE)*マスタ!F53,0),0) -> 0 | H71: 0 | J71: 3月 | K71: =$K$69 -> 0 | L71: =IFERROR(IF(シミュレータ!$J$9="(A)",VLOOKUP(シミュレータ!$C$3,マスタ!$B$3:$P$11,9,FALSE),IF(シミュレータ!$J$9="(kVA)",VLOOKUP(シミュレータ!$C$3,マスタ!$B$12:$P$20,9,FALSE),""))*G53,0) -> 0 | M71: =IFERROR(IF(シミュレータ!$J$9="(A)",VLOOKUP(シミュレータ!$C$3,マスタ!$B$3:$P$11,9,FALSE),IF(シミュレータ!$J$9="(kVA)",VLOOKUP(シミュレータ!$C$3,マスタ!$B$12:$P$20,9,FALSE),""))*H53,0) -> 0 | N71: =IFERROR(IF(シミュレータ!$J$9="(A)",VLOOKUP(シミュレータ!$C$3,マスタ!$B$3:$P$11,9,FALSE),IF(シミュレータ!$J$9="(kVA)",VLOOKUP(シミュレータ!$C$3,マスタ!$B$12:$P$20,9,FALSE),""))*I53,0) -> 0 | O71: =IFERROR(IF(シミュレータ!$J$9="(KW)",VLOOKUP(シミュレータ!$C$3,マスタ!$B$21:$R$29,17,FALSE)*マスタ!F53,0),0) -> 0 | P71: 0
B72: 4月 | C72: 0 | D72: =IFERROR(IF(シミュレータ!$J$9="(A)",VLOOKUP(シミュレータ!$C$3,マスタ!$B$3:$P$11,5,FALSE),IF(シミュレータ!$J$9="(kVA)",VLOOKUP(シミュレータ!$C$3,マスタ!$B$12:$P$20,5,FALSE),""))*G54,0) -> 0 | E72: =IFERROR(IF(シミュレータ!$J$9="(A)",VLOOKUP(シミュレータ!$C$3,マスタ!$B$3:$P$11,6,FALSE),IF(シミュレータ!$J$9="(kVA)",VLOOKUP(シミュレータ!$C$3,マスタ!$B$12:$P$20,6,FALSE),""))*H54,0) -> 0 | F72: =IFERROR(IF(シミュレータ!$J$9="(A)",VLOOKUP(シミュレータ!$C$3,マスタ!$B$3:$P$11,7,FALSE),IF(シミュレータ!$J$9="(kVA)",VLOOKUP(シミュレータ!$C$3,マスタ!$B$12:$P$20,7,FALSE),""))*I54,0) -> 0 | G72: =IFERROR(IF(シミュレータ!$J$9="(KW)",VLOOKUP(シミュレータ!$C$3,マスタ!$B$21:$R$29,13,FALSE)*マスタ!F54,0),0) -> 0 | H72: 0 | J72: 4月 | K72: 0 | L72: =IFERROR(IF(シミュレータ!$J$9="(A)",VLOOKUP(シミュレータ!$C$3,マスタ!$B$3:$P$11,9,FALSE),IF(シミュレータ!$J$9="(kVA)",VLOOKUP(シミュレータ!$C$3,マスタ!$B$12:$P$20,9,FALSE),""))*G54,0) -> 0 | M72: =IFERROR(IF(シミュレータ!$J$9="(A)",VLOOKUP(シミュレータ!$C$3,マスタ!$B$3:$P$11,9,FALSE),IF(シミュレータ!$J$9="(kVA)",VLOOKUP(シミュレータ!$C$3,マスタ!$B$12:$P$20,9,FALSE),""))*H54,0) -> 0 | N72: =IFERROR(IF(シミュレータ!$J$9="(A)",VLOOKUP(シミュレータ!$C$3,マスタ!$B$3:$P$11,9,FALSE),IF(シミュレータ!$J$9="(kVA)",VLOOKUP(シミュレータ!$C$3,マスタ!$B$12:$P$20,9,FALSE),""))*I54,0) -> 0 | O72: =IFERROR(IF(シミュレータ!$J$9="(KW)",VLOOKUP(シミュレータ!$C$3,マスタ!$B$21:$R$29,17,FALSE)*マスタ!F54,0),0) -> 0 | P72: 0
B73: 5月 | C73: 0 | D73: =IFERROR(IF(シミュレータ!$J$9="(A)",VLOOKUP(シミュレータ!$C$3,マスタ!$B$3:$P$11,5,FALSE),IF(シミュレータ!$J$9="(kVA)",VLOOKUP(シミュレータ!$C$3,マスタ!$B$12:$P$20,5,FALSE),""))*G55,0) -> 0 | E73: =IFERROR(IF(シミュレータ!$J$9="(A)",VLOOKUP(シミュレータ!$C$3,マスタ!$B$3:$P$11,6,FALSE),IF(シミュレータ!$J$9="(kVA)",VLOOKUP(シミュレータ!$C$3,マスタ!$B$12:$P$20,6,FALSE),""))*H55,0) -> 0 | F73: =IFERROR(IF(シミュレータ!$J$9="(A)",VLOOKUP(シミュレータ!$C$3,マスタ!$B$3:$P$11,7,FALSE),IF(シミュレータ!$J$9="(kVA)",VLOOKUP(シミュレータ!$C$3,マスタ!$B$12:$P$20,7,FALSE),""))*I55,0) -> 0 | G73: =IFERROR(IF(シミュレータ!$J$9="(KW)",VLOOKUP(シミュレータ!$C$3,マスタ!$B$21:$R$29,13,FALSE)*マスタ!F55,0),0) -> 0 | H73: 0 | J73: 5月 | K73: 0 | L73: =IFERROR(IF(シミュレータ!$J$9="(A)",VLOOKUP(シミュレータ!$C$3,マスタ!$B$3:$P$11,9,FALSE),IF(シミュレータ!$J$9="(kVA)",VLOOKUP(シミュレータ!$C$3,マスタ!$B$12:$P$20,9,FALSE),""))*G55,0) -> 0 | M73: =IFERROR(IF(シミュレータ!$J$9="(A)",VLOOKUP(シミュレータ!$C$3,マスタ!$B$3:$P$11,9,FALSE),IF(シミュレータ!$J$9="(kVA)",VLOOKUP(シミュレータ!$C$3,マスタ!$B$12:$P$20,9,FALSE),""))*H55,0) -> 0 | N73: =IFERROR(IF(シミュレータ!$J$9="(A)",VLOOKUP(シミュレータ!$C$3,マスタ!$B$3:$P$11,9,FALSE),IF(シミュレータ!$J$9="(kVA)",VLOOKUP(シミュレータ!$C$3,マスタ!$B$12:$P$20,9,FALSE),""))*I55,0) -> 0 | O73: =IFERROR(IF(シミュレータ!$J$9="(KW)",VLOOKUP(シミュレータ!$C$3,マスタ!$B$21:$R$29,17,FALSE)*マスタ!F55,0),0) -> 0 | P73: 0
B74: 6月 | C74: 0 | D74: =IFERROR(IF(シミュレータ!$J$9="(A)",VLOOKUP(シミュレータ!$C$3,マスタ!$B$3:$P$11,5,FALSE),IF(シミュレータ!$J$9="(kVA)",VLOOKUP(シミュレータ!$C$3,マスタ!$B$12:$P$20,5,FALSE),""))*G56,0) -> 0 | E74: =IFERROR(IF(シミュレータ!$J$9="(A)",VLOOKUP(シミュレータ!$C$3,マスタ!$B$3:$P$11,6,FALSE),IF(シミュレータ!$J$9="(kVA)",VLOOKUP(シミュレータ!$C$3,マスタ!$B$12:$P$20,6,FALSE),""))*H56,0) -> 0 | F74: =IFERROR(IF(シミュレータ!$J$9="(A)",VLOOKUP(シミュレータ!$C$3,マスタ!$B$3:$P$11,7,FALSE),IF(シミュレータ!$J$9="(kVA)",VLOOKUP(シミュレータ!$C$3,マスタ!$B$12:$P$20,7,FALSE),""))*I56,0) -> 0 | G74: =IFERROR(IF(シミュレータ!$J$9="(KW)",VLOOKUP(シミュレータ!$C$3,マスタ!$B$21:$R$29,13,FALSE)*マスタ!F56,0),0) -> 0 | H74: 0 | J74: 6月 | K74: 0 | L74: =IFERROR(IF(シミュレータ!$J$9="(A)",VLOOKUP(シミュレータ!$C$3,マスタ!$B$3:$P$11,9,FALSE),IF(シミュレータ!$J$9="(kVA)",VLOOKUP(シミュレータ!$C$3,マスタ!$B$12:$P$20,9,FALSE),""))*G56,0) -> 0 | M74: =IFERROR(IF(シミュレータ!$J$9="(A)",VLOOKUP(シミュレータ!$C$3,マスタ!$B$3:$P$11,9,FALSE),IF(シミュレータ!$J$9="(kVA)",VLOOKUP(シミュレータ!$C$3,マスタ!$B$12:$P$20,9,FALSE),""))*H56,0) -> 0 | N74: =IFERROR(IF(シミュレータ!$J$9="(A)",VLOOKUP(シミュレータ!$C$3,マスタ!$B$3:$P$11,9,FALSE),IF(シミュレータ!$J$9="(kVA)",VLOOKUP(シミュレータ!$C$3,マスタ!$B$12:$P$20,9,FALSE),""))*I56,0) -> 0 | O74: =IFERROR(IF(シミュレータ!$J$9="(KW)",VLOOKUP(シミュレータ!$C$3,マスタ!$B$21:$R$29,17,FALSE)*マスタ!F56,0),0) -> 0 | P74: 0
B75: 7月 | C75: 0 | D75: =IFERROR(IF(シミュレータ!$J$9="(A)",VLOOKUP(シミュレータ!$C$3,マスタ!$B$3:$P$11,5,FALSE),IF(シミュレータ!$J$9="(kVA)",VLOOKUP(シミュレータ!$C$3,マスタ!$B$12:$P$20,5,FALSE),""))*G57,0) -> 0 | E75: =IFERROR(IF(シミュレータ!$J$9="(A)",VLOOKUP(シミュレータ!$C$3,マスタ!$B$3:$P$11,6,FALSE),IF(シミュレータ!$J$9="(kVA)",VLOOKUP(シミュレータ!$C$3,マスタ!$B$12:$P$20,6,FALSE),""))*H57,0) -> 0 | F75: =IFERROR(IF(シミュレータ!$J$9="(A)",VLOOKUP(シミュレータ!$C$3,マスタ!$B$3:$P$11,7,FALSE),IF(シミュレータ!$J$9="(kVA)",VLOOKUP(シミュレータ!$C$3,マスタ!$B$12:$P$20,7,FALSE),""))*I57,0) -> 0 | G75: =IFERROR(IF(シミュレータ!$J$9="(KW)",VLOOKUP(シミュレータ!$C$3,マスタ!$B$21:$R$29,12,FALSE)*マスタ!F57,0),0) -> 0 | H75: 0 | J75: 7月 | K75: 0 | L75: =IFERROR(IF(シミュレータ!$J$9="(A)",VLOOKUP(シミュレータ!$C$3,マスタ!$B$3:$P$11,9,FALSE),IF(シミュレータ!$J$9="(kVA)",VLOOKUP(シミュレータ!$C$3,マスタ!$B$12:$P$20,9,FALSE),""))*G57,0) -> 0 | M75: =IFERROR(IF(シミュレータ!$J$9="(A)",VLOOKUP(シミュレータ!$C$3,マスタ!$B$3:$P$11,9,FALSE),IF(シミュレータ!$J$9="(kVA)",VLOOKUP(シミュレータ!$C$3,マスタ!$B$12:$P$20,9,FALSE),""))*H57,0) -> 0 | N75: =IFERROR(IF(シミュレータ!$J$9="(A)",VLOOKUP(シミュレータ!$C$3,マスタ!$B$3:$P$11,9,FALSE),IF(シミュレータ!$J$9="(kVA)",VLOOKUP(シミュレータ!$C$3,マスタ!$B$12:$P$20,9,FALSE),""))*I57,0) -> 0 | O75: =IFERROR(IF(シミュレータ!$J$9="(KW)",VLOOKUP(シミュレータ!$C$3,マスタ!$B$21:$R$29,16,FALSE)*マスタ!F57,0),0) -> 0 | P75: 0
B76: 8月 | C76: 0 | D76: =IFERROR(IF(シミュレータ!$J$9="(A)",VLOOKUP(シミュレータ!$C$3,マスタ!$B$3:$P$11,5,FALSE),IF(シミュレータ!$J$9="(kVA)",VLOOKUP(シミュレータ!$C$3,マスタ!$B$12:$P$20,5,FALSE),""))*G58,0) -> 0 | E76: =IFERROR(IF(シミュレータ!$J$9="(A)",VLOOKUP(シミュレータ!$C$3,マスタ!$B$3:$P$11,6,FALSE),IF(シミュレータ!$J$9="(kVA)",VLOOKUP(シミュレータ!$C$3,マスタ!$B$12:$P$20,6,FALSE),""))*H58,0) -> 0 | F76: =IFERROR(IF(シミュレータ!$J$9="(A)",VLOOKUP(シミュレータ!$C$3,マスタ!$B$3:$P$11,7,FALSE),IF(シミュレータ!$J$9="(kVA)",VLOOKUP(シミュレータ!$C$3,マスタ!$B$12:$P$20,7,FALSE),""))*I58,0) -> 0 | G76: =IFERROR(IF(シミュレータ!$J$9="(KW)",VLOOKUP(シミュレータ!$C$3,マスタ!$B$21:$R$29,12,FALSE)*マスタ!F58,0),0) -> 0 | H76: 0 | J76: 8月 | K76: 0 | L76: =IFERROR(IF(シミュレータ!$J$9="(A)",VLOOKUP(シミュレータ!$C$3,マスタ!$B$3:$P$11,9,FALSE),IF(シミュレータ!$J$9="(kVA)",VLOOKUP(シミュレータ!$C$3,マスタ!$B$12:$P$20,9,FALSE),""))*G58,0) -> 0 | M76: =IFERROR(IF(シミュレータ!$J$9="(A)",VLOOKUP(シミュレータ!$C$3,マスタ!$B$3:$P$11,9,FALSE),IF(シミュレータ!$J$9="(kVA)",VLOOKUP(シミュレータ!$C$3,マスタ!$B$12:$P$20,9,FALSE),""))*H58,0) -> 0 | N76: =IFERROR(IF(シミュレータ!$J$9="(A)",VLOOKUP(シミュレータ!$C$3,マスタ!$B$3:$P$11,9,FALSE),IF(シミュレータ!$J$9="(kVA)",VLOOKUP(シミュレータ!$C$3,マスタ!$B$12:$P$20,9,FALSE),""))*I58,0) -> 0 | O76: =IFERROR(IF(シミュレータ!$J$9="(KW)",VLOOKUP(シミュレータ!$C$3,マスタ!$B$21:$R$29,16,FALSE)*マスタ!F58,0),0) -> 0 | P76: 0
B77: 9月 | C77: 0 | D77: =IFERROR(IF(シミュレータ!$J$9="(A)",VLOOKUP(シミュレータ!$C$3,マスタ!$B$3:$P$11,5,FALSE),IF(シミュレータ!$J$9="(kVA)",VLOOKUP(シミュレータ!$C$3,マスタ!$B$12:$P$20,5,FALSE),""))*G59,0) -> 0 | E77: =IFERROR(IF(シミュレータ!$J$9="(A)",VLOOKUP(シミュレータ!$C$3,マスタ!$B$3:$P$11,6,FALSE),IF(シミュレータ!$J$9="(kVA)",VLOOKUP(シミュレータ!$C$3,マスタ!$B$12:$P$20,6,FALSE),""))*H59,0) -> 0 | F77: =IFERROR(IF(シミュレータ!$J$9="(A)",VLOOKUP(シミュレータ!$C$3,マスタ!$B$3:$P$11,7,FALSE),IF(シミュレータ!$J$9="(kVA)",VLOOKUP(シミュレータ!$C$3,マスタ!$B$12:$P$20,7,FALSE),""))*I59,0) -> 0 | G77: =IFERROR(IF(シミュレータ!$J$9="(KW)",VLOOKUP(シミュレータ!$C$3,マスタ!$B$21:$R$29,12,FALSE)*マスタ!F59,0),0) -> 0 | H77: 0 | J77: 9月 | K77: 0 | L77: =IFERROR(IF(シミュレータ!$J$9="(A)",VLOOKUP(シミュレータ!$C$3,マスタ!$B$3:$P$11,9,FALSE),IF(シミュレータ!$J$9="(kVA)",VLOOKUP(シミュレータ!$C$3,マスタ!$B$12:$P$20,9,FALSE),""))*G59,0) -> 0 | M77: =IFERROR(IF(シミュレータ!$J$9="(A)",VLOOKUP(シミュレータ!$C$3,マスタ!$B$3:$P$11,9,FALSE),IF(シミュレータ!$J$9="(kVA)",VLOOKUP(シミュレータ!$C$3,マスタ!$B$12:$P$20,9,FALSE),""))*H59,0) -> 0 | N77: =IFERROR(IF(シミュレータ!$J$9="(A)",VLOOKUP(シミュレータ!$C$3,マスタ!$B$3:$P$11,9,FALSE),IF(シミュレータ!$J$9="(kVA)",VLOOKUP(シミュレータ!$C$3,マスタ!$B$12:$P$20,9,FALSE),""))*I59,0) -> 0 | O77: =IFERROR(IF(シミュレータ!$J$9="(KW)",VLOOKUP(シミュレータ!$C$3,マスタ!$B$21:$R$29,16,FALSE)*マスタ!F59,0),0) -> 0 | P77: 0
B78: 10月 | C78: =$C$69 -> 0 | D78: =IFERROR(IF(シミュレータ!$J$9="(A)",VLOOKUP(シミュレータ!$C$3,マスタ!$B$3:$P$11,5,FALSE),IF(シミュレータ!$J$9="(kVA)",VLOOKUP(シミュレータ!$C$3,マスタ!$B$12:$P$20,5,FALSE),""))*G60,0) -> 0 | E78: =IFERROR(IF(シミュレータ!$J$9="(A)",VLOOKUP(シミュレータ!$C$3,マスタ!$B$3:$P$11,6,FALSE),IF(シミュレータ!$J$9="(kVA)",VLOOKUP(シミュレータ!$C$3,マスタ!$B$12:$P$20,6,FALSE),""))*H60,0) -> 0 | F78: =IFERROR(IF(シミュレータ!$J$9="(A)",VLOOKUP(シミュレータ!$C$3,マスタ!$B$3:$P$11,7,FALSE),IF(シミュレータ!$J$9="(kVA)",VLOOKUP(シミュレータ!$C$3,マスタ!$B$12:$P$20,7,FALSE),""))*I60,0) -> 0 | G78: =IFERROR(IF(シミュレータ!$J$9="(KW)",VLOOKUP(シミュレータ!$C$3,マスタ!$B$21:$R$29,13,FALSE)*マスタ!F60,0),0) -> 0 | H78: =SUM(C78:G78) -> 0 | J78: 10月 | K78: 0 | L78: =IFERROR(IF(シミュレータ!$J$9="(A)",VLOOKUP(シミュレータ!$C$3,マスタ!$B$3:$P$11,9,FALSE),IF(シミュレータ!$J$9="(kVA)",VLOOKUP(シミュレータ!$C$3,マスタ!$B$12:$P$20,9,FALSE),""))*G60,0) -> 0 | M78: =IFERROR(IF(シミュレータ!$J$9="(A)",VLOOKUP(シミュレータ!$C$3,マスタ!$B$3:$P$11,9,FALSE),IF(シミュレータ!$J$9="(kVA)",VLOOKUP(シミュレータ!$C$3,マスタ!$B$12:$P$20,9,FALSE),""))*H60,0) -> 0 | N78: =IFERROR(IF(シミュレータ!$J$9="(A)",VLOOKUP(シミュレータ!$C$3,マスタ!$B$3:$P$11,9,FALSE),IF(シミュレータ!$J$9="(kVA)",VLOOKUP(シミュレータ!$C$3,マスタ!$B$12:$P$20,9,FALSE),""))*I60,0) -> 0 | O78: =IFERROR(IF(シミュレータ!$J$9="(KW)",VLOOKUP(シミュレータ!$C$3,マスタ!$B$21:$R$29,17,FALSE)*マスタ!F60,0),0) -> 0 | P78: 0
B79: 11月 | C79: 0 | D79: =IFERROR(IF(シミュレータ!$J$9="(A)",VLOOKUP(シミュレータ!$C$3,マスタ!$B$3:$P$11,5,FALSE),IF(シミュレータ!$J$9="(kVA)",VLOOKUP(シミュレータ!$C$3,マスタ!$B$12:$P$20,5,FALSE),""))*G61,0) -> 0 | E79: =IFERROR(IF(シミュレータ!$J$9="(A)",VLOOKUP(シミュレータ!$C$3,マスタ!$B$3:$P$11,6,FALSE),IF(シミュレータ!$J$9="(kVA)",VLOOKUP(シミュレータ!$C$3,マスタ!$B$12:$P$20,6,FALSE),""))*H61,0) -> 0 | F79: =IFERROR(IF(シミュレータ!$J$9="(A)",VLOOKUP(シミュレータ!$C$3,マスタ!$B$3:$P$11,7,FALSE),IF(シミュレータ!$J$9="(kVA)",VLOOKUP(シミュレータ!$C$3,マスタ!$B$12:$P$20,7,FALSE),""))*I61,0) -> 0 | G79: =IFERROR(IF(シミュレータ!$J$9="(KW)",VLOOKUP(シミュレータ!$C$3,マスタ!$B$21:$R$29,13,FALSE)*マスタ!F61,0),0) -> 0 | H79: 0 | J79: 11月 | K79: 0 | L79: =IFERROR(IF(シミュレータ!$J$9="(A)",VLOOKUP(シミュレータ!$C$3,マスタ!$B$3:$P$11,9,FALSE),IF(シミュレータ!$J$9="(kVA)",VLOOKUP(シミュレータ!$C$3,マスタ!$B$12:$P$20,9,FALSE),""))*G61,0) -> 0 | M79: =IFERROR(IF(シミュレータ!$J$9="(A)",VLOOKUP(シミュレータ!$C$3,マスタ!$B$3:$P$11,9,FALSE),IF(シミュレータ!$J$9="(kVA)",VLOOKUP(シミュレータ!$C$3,マスタ!$B$12:$P$20,9,FALSE),""))*H61,0) -> 0 | N79: =IFERROR(IF(シミュレータ!$J$9="(A)",VLOOKUP(シミュレータ!$C$3,マスタ!$B$3:$P$11,9,FALSE),IF(シミュレータ!$J$9="(kVA)",VLOOKUP(シミュレータ!$C$3,マスタ!$B$12:$P$20,9,FALSE),""))*I61,0) -> 0 | O79: =IFERROR(IF(シミュレータ!$J$9="(KW)",VLOOKUP(シミュレータ!$C$3,マスタ!$B$21:$R$29,17,FALSE)*マスタ!F61,0),0) -> 0 | P79: 0
B80: 12月 | C80: 0 | D80: =IFERROR(IF(シミュレータ!$J$9="(A)",VLOOKUP(シミュレータ!$C$3,マスタ!$B$3:$P$11,5,FALSE),IF(シミュレータ!$J$9="(kVA)",VLOOKUP(シミュレータ!$C$3,マスタ!$B$12:$P$20,5,FALSE),""))*G62,0) -> 0 | E80: =IFERROR(IF(シミュレータ!$J$9="(A)",VLOOKUP(シミュレータ!$C$3,マスタ!$B$3:$P$11,6,FALSE),IF(シミュレータ!$J$9="(kVA)",VLOOKUP(シミュレータ!$C$3,マスタ!$B$12:$P$20,6,FALSE),""))*H62,0) -> 0 | F80: =IFERROR(IF(シミュレータ!$J$9="(A)",VLOOKUP(シミュレータ!$C$3,マスタ!$B$3:$P$11,7,FALSE),IF(シミュレータ!$J$9="(kVA)",VLOOKUP(シミュレータ!$C$3,マスタ!$B$12:$P$20,7,FALSE),""))*I62,0) -> 0 | G80: =IFERROR(IF(シミュレータ!$J$9="(KW)",VLOOKUP(シミュレータ!$C$3,マスタ!$B$21:$R$29,13,FALSE)*マスタ!F62,0),0) -> 0 | H80: 0 | J80: 12月 | K80: 0 | L80: =IFERROR(IF(シミュレータ!$J$9="(A)",VLOOKUP(シミュレータ!$C$3,マスタ!$B$3:$P$11,9,FALSE),IF(シミュレータ!$J$9="(kVA)",VLOOKUP(シミュレータ!$C$3,マスタ!$B$12:$P$20,9,FALSE),""))*G62,0) -> 0 | M80: =IFERROR(IF(シミュレータ!$J$9="(A)",VLOOKUP(シミュレータ!$C$3,マスタ!$B$3:$P$11,9,FALSE),IF(シミュレータ!$J$9="(kVA)",VLOOKUP(シミュレータ!$C$3,マスタ!$B$12:$P$20,9,FALSE),""))*H62,0) -> 0 | N80: =IFERROR(IF(シミュレータ!$J$9="(A)",VLOOKUP(シミュレータ!$C$3,マスタ!$B$3:$P$11,9,FALSE),IF(シミュレータ!$J$9="(kVA)",VLOOKUP(シミュレータ!$C$3,マスタ!$B$12:$P$20,9,FALSE),""))*I62,0) -> 0 | O80: =IFERROR(IF(シミュレータ!$J$9="(KW)",VLOOKUP(シミュレータ!$C$3,マスタ!$B$21:$R$29,17,FALSE)*マスタ!F62,0),0) -> 0 | P80: 0
